Workbook

Sheet APA VTS Return on debt
B2: APA VTS
B3: Victorian Transmission System
B4: VTS Access Arrangement revisions proposal 2016
B6: Return on debt
B8: Australian Government Securities (RBA F16 (historical))
D10: Tenor 7 years | M10: Tenor 10 years
F11: Days | H11: Days to | I11: Days | J11: Interpolated | K11: Effective | O11: Days | Q11: Days to | R11: Days | S11: Interpolated | T11: Effective
F12: to maturity | H12: maturity | I12: 7 years | J12: yield | K12: annual rate | O12: to maturity | Q12: maturity | R12: 10 years | S12: yield | T12: annual rate
B14: 2005-10-31 | E14: TB117 | G14: TB118 | N14: TB119 | P14: TB120
E15: 2011-06-15 | G15: 2013-05-15 | N15: 2015-04-15 | P15: 2017-02-15
E16: 0.05415 | F16: =(30+31)+5*365+1+(31+28+31+30+31+15) -> 2053 | G16: 0.05465 | H16: =(30+31)+7*365+2+(31+28+31+30+15) -> 2753 | I16: =7*365+1 -> 2556 | J16: =E16+(G16-E16)*(I16-F16)/(H16-F16) -> 0.05450928571 | K16: =(1+J16/2)^2-1 -> 0.05525210127 | N16: 0.05475 | O16: =(30+31)+9*365+2+(31+28+31+15) -> 3453 | P16: 0.05505 | Q16: =(30+31)+11*365+3+(31+15) -> 4125 | R16: =10*365+2 -> 3652 | S16: =N16+(P16-N16)*(R16-O16)/(Q16-O16) -> 0.05483883929 | T16: =(1+S16/2)^2-1 -> 0.05559066386
B18: 2006-10-31 | E18: TB118 | G18: TB119 | N18: TB119 | P18: TB120
E19: 2013-05-15 | G19: 2015-04-15 | N19: 2015-04-15 | P19: 2017-02-15
E20: 0.05785 | F20: =(30+31)+6*365+2+(31+28+31+30+15) -> 2388 | G20: 0.05705 | H20: =(30+31)+8*365+2+(31+28+31+15) -> 3088 | I20: =7*365+2 -> 2557 | J20: =E20+(G20-E20)*(I20-F20)/(H20-F20) -> 0.05765685714 | K20: =(1+J20/2)^2-1 -> 0.05848793544 | N20: 0.05705 | O20: =(30+31)+8*365+2+(31+28+31+15) -> 3088 | P20: 0.0566 | Q20: =(30+31)+10*365+3+(31+15) -> 3760 | R20: =10*365+3 -> 3653 | S20: =N20+(P20-N20)*(R20-O20)/(Q20-O20) -> 0.05667165179 | T20: =(1+S20/2)^2-1 -> 0.05747457081
B22: 2007-10-31 | E22: TB118 | G22: TB119 | N22: TB120 | P22: TB122
E23: 2013-05-15 | G23: 2015-04-15 | N23: 2017-02-15 | P23: 2019-03-15
E24: 0.06465 | F24: =(30+31)+5*365+2+(31+28+31+30+15) -> 2023 | G24: 0.06275 | H24: =(30+31)+7*365+2+(31+28+31+15) -> 2723 | I24: =7*365+2 -> 2557 | J24: =E24+(G24-E24)*(I24-F24)/(H24-F24) -> 0.06320057143 | K24: =(1+J24/2)^2-1 -> 0.06419914949 | N24: 0.06175 | O24: =(30+31)+9*365+3+(31+15) -> 3395 | P24: 0.06135 | Q24: =(30+31)+11*365+3+(31+28+15) -> 4153 | R24: =10*365+3 -> 3653 | S24: =N24+(P24-N24)*(R24-O24)/(Q24-O24) -> 0.06161385224 | T24: =(1+S24/2)^2-1 -> 0.06256291894
B26: 2008-10-31 | E26: TB119 | G26: TB120 | N26: TB120 | P26: TB122
E27: 2015-04-15 | G27: 2017-02-15 | N27: 2017-02-15 | P27: 2019-03-15
E28: 0.04895 | F28: =(30+31)+6*365+1+(31+28+31+15) -> 2357 | G28: 0.05045 | H28: =(30+31)+8*365+2+(31+15) -> 3029 | I28: =7*365+1 -> 2556 | J28: =E28+(G28-E28)*(I28-F28)/(H28-F28) -> 0.04939419643 | K28: =(1+J28/2)^2-1 -> 0.05000414309 | N28: 0.05045 | O28: =(30+31)+8*365+2+(31+15) -> 3029 | P28: 0.05175 | Q28: =(30+31)+10*365+2+(31+28+15) -> 3787 | R28: =10*365+2 -> 3652 | S28: =N28+(P28-N28)*(R28-O28)/(Q28-O28) -> 0.05151846966 | T28: =(1+S28/2)^2-1 -> 0.05218200784
B30: 2009-10-30 | E30: TB119 | G30: TB120 | N30: TB122 | P30: TB126
E31: 2015-04-15 | G31: 2017-02-15 | N31: 2019-03-15 | P31: 2020-04-15
E32: 0.05375 | F32: =(1+30+31)+5*365+1+(31+28+31+15) -> 1993 | G32: 0.0546 | H32: =(1+30+31)+7*365+2+(31+15) -> 2665 | I32: =7*365+2 -> 2557 | J32: =E32+(G32-E32)*(I32-F32)/(H32-F32) -> 0.05446339286 | K32: =(1+J32/2)^2-1 -> 0.05520495815 | N32: 0.0554 | O32: =(1+30+31)+9*365+2+(31+28+15) -> 3423 | P32: 0.05615 | Q32: =(1+30+31)+10*365+2+(31+29+31+15) -> 3820 | R32: =10*365+2 -> 3652 | S32: =N32+(P32-N32)*(R32-O32)/(Q32-O32) -> 0.05583261965 | T32: =(1+S32/2)^2-1 -> 0.05661194
B34: 2010-10-29 | E34: TB120 | G34: TB122 | N34: TB126 | P34: TB124
E35: 2017-02-15 | G35: 2019-03-15 | N35: 2020-04-15 | P35: 2021-05-15
E36: 0.05105 | F36: =(2+30+31)+6*365+2+(31+15) -> 2301 | G36: 0.0518 | H36: =(2+30+31)+8*365+2+(31+28+15) -> 3059 | I36: =7*365+2 -> 2557 | J36: =E36+(G36-E36)*(I36-F36)/(H36-F36) -> 0.05130329815 | K36: =(1+J36/2)^2-1 -> 0.05196130525 | N36: 0.05205 | O36: =(2+30+31)+9*365+2+(31+29+31+15) -> 3456 | P36: 0.05235 | Q36: =(2+30+31)+10*365+3+(31+28+31+30+15) -> 3851 | R36: =10*365+3 -> 3653 | S36: =N36+(P36-N36)*(R36-O36)/(Q36-O36) -> 0.05219962025 | T36: =(1+S36/2)^2-1 -> 0.05288082034
B38: 2011-10-31 | E38: TB132 | G38: TB122 | N38: TB124 | P38: TB128
E39: 2018-01-21 | G39: 2019-03-15 | N39: 2021-05-15 | P39: 2022-07-15
E40: 0.0424 | F40: =(30+31)+6*365+2+21 -> 2274 | G40: 0.04325 | H40: =(30+31)+7*365+2+(31+28+15) -> 2692 | I40: =7*365+2 -> 2557 | J40: =E40+(G40-E40)*(I40-F40)/(H40-F40) -> 0.04297547847 | K40: =(1+J40/2)^2-1 -> 0.04343720141 | N40: 0.0451 | O40: =(30+31)+9*365+3+(31+28+31+30+15) -> 3484 | P40: 0.0459 | Q40: =(30+31)+10*365+3+(31+28+31+30+31+30+15) -> 3910 | R40: =10*365+3 -> 3653 | S40: =N40+(P40-N40)*(R40-O40)/(Q40-O40) -> 0.04541737089 | T40: =(1+S40/2)^2-1 -> 0.04593305529
B42: 2012-10-31 | E42: TB122 | G42: TB126 | N42: TB124 | P42: TB133
E43: 2019-03-15 | G43: 2020-04-15 | N43: 2021-05-15 | P43: 2023-04-21
E44: 0.02785 | F44: =(30+31)+6*365+1+(31+28+15) -> 2326 | G44: 0.0288 | H44: =(30+31)+7*365+1+(31+29+31+15) -> 2723 | I44: =7*365+1 -> 2556 | J44: =E44+(G44-E44)*(I44-F44)/(H44-F44) -> 0.02840037783 | K44: =(1+J44/2)^2-1 -> 0.0286020232 | N44: 0.0297 | O44: =(30+31)+8*365+2+(31+28+31+30+15) -> 3118 | P44: 0.03055 | Q44: =(30+31)+10*365+2+(31+28+31+321) -> 4124 | R44: =10*365+2 -> 3652 | S44: =N44+(P44-N44)*(R44-O44)/(Q44-O44) -> 0.03015119284 | T44: =(1+S44/2)^2-1 -> 0.03037846645
B46: 2013-10-31 | E46: TB126 | G46: TB124 | N46: TB133 | P46: TB137
E47: 2020-04-15 | G47: 2021-05-15 | N47: 2023-04-21 | P47: 2024-04-21
E48: 0.03595 | F48: =(30+31)+6*365+1+(31+29+31+15) -> 2358 | G48: 0.0376 | H48: =(30+31)+7*365+2+(31+28+31+30+15) -> 2753 | I48: =7*365+2 -> 2557 | J48: =E48+(G48-E48)*(I48-F48)/(H48-F48) -> 0.03678126582 | K48: =(1+J48/2)^2-1 -> 0.0371194812 | N48: 0.03935 | O48: =(31+30+31)+9*365+2+(31+28+31+21) -> 3490 | P48: 0.0402 | Q48: =(30+31)+10*365+2+(31+29+31+21) -> 3825 | R48: =10*365+2 -> 3652 | S48: =N48+(P48-N48)*(R48-O48)/(Q48-O48) -> 0.03976104478 | T48: =(1+S48/2)^2-1 -> 0.04015627995
B50: 2014-10-31 | E50: TB124 | G50: TB128 | N50: TB137 | P50: TB139
E51: 2021-05-15 | G51: 2022-07-15 | N51: 2024-04-21 | P51: 2025-04-21
E52: 0.03 | F52: =(30+31)+6*365+2+(31+28+31+30+15) -> 2388 | G52: 0.03125 | H52: =(30+31)+7*365+2+(31+28+31+30+31+30+15) -> 2814 | I52: =7*365+2 -> 2557 | J52: =E52+(G52-E52)*(I52-F52)/(H52-F52) -> 0.03049589202 | K52: =(1+J52/2)^2-1 -> 0.03072839188 | N52: 0.03285 | O52: =(30+31)+9*365+2+(31+28+31+21) -> 3459 | P52: 0.0335 | Q52: =(30+31)+10*365+3+(31+28+31+21) -> 3825 | R52: =10*365+3 -> 3653 | S52: =N52+(P52-N52)*(R52-O52)/(Q52-O52) -> 0.03319453552 | T52: =(1+S52/2)^2-1 -> 0.03347000482
B54: 2015-10-30 | E54: TB128 | G54: TB133 | N54: TB139 | P54: TB142
E55: 2022-07-15 | G55: 2023-04-21 | N55: 2025-04-21 | P55: 2026-04-21
E56: 0.023 | F56: =(1+30+31)+6*365+2+(31+28+31+30+31+30+15) -> 2450 | G56: 0.024 | H56: =(1+30+31)+7*365+2+(31+28+31+21) -> 2730 | I56: =7*365+2 -> 2557 | J56: =E56+(G56-E56)*(I56-F56)/(H56-F56) -> 0.02338214286 | K56: =(1+J56/2)^2-1 -> 0.02351882401 | N56: 0.0261 | O56: =(1+30+31)+9*365+3+(31+28+31+21) -> 3461 | P56: 0.02675 | Q56: =(1+30+31)+10*365+3+(31+28+31+21) -> 3826 | R56: =10*365+2 -> 3652 | S56: =N56+(P56-N56)*(R56-O56)/(Q56-O56) -> 0.02644013699 | T56: =(1+S56/2)^2-1 -> 0.0266149072
B58: 2016-10-31 | E58: TB133 | G58: TB137 | N58: TB142 | P58: TB136
E59: 2023-04-21 | G59: 2024-04-21 | N59: 2026-04-21 | P59: 2027-04-21
E60: 0.02055 | F60: =(30+31)+6*365+1+(31+28+31+21) -> 2363 | G60: 0.0218 | H60: =(30+31)+7*365+1+(31+29+31+21) -> 2729 | I60: =7*365+2 -> 2557 | J60: =E60+(G60-E60)*(I60-F60)/(H60-F60) -> 0.02121256831 | K60: =(1+J60/2)^2-1 -> 0.02132506157 | N60: 0.02305 | O60: =(30+31)+9*365+2+(31+28+31+21) -> 3459 | P60: 0.02345 | Q60: =(30+31)+10*365+2+(31+28+31+21) -> 3824 | R60: =10*365+2 -> 3652 | S60: =N60+(P60-N60)*(R60-O60)/(Q60-O60) -> 0.02326150685 | T60: =(1+S60/2)^2-1 -> 0.02339678127
B64: BBB non-financial corporate debt yields (RBA F03)
E66: Tenor 7 years | N66: Tenor 10 years
E67: Yield | F67: Effective | G67: Spread to | N67: Yield | O67: Effective | P67: Spread to | Q67: Extrapolate | R67: Effective | S67: Adjusted RBA
F68: tenor | G68: swap | O68: tenor | P68: swap | Q68: tenor | R68: annual rate | S68: spread
B69: October
B70: 2006 | E70: 0.0699 | F70: 6.81 | G70: 0.007245 | N70: 0.0696 | O70: 8.92 | P70: 0.00789 | Q70: =N70+(P70-G70)*(10-O70)/(O70-F70) -> 0.06993014218 | R70: =(1+Q70/2)^2-1 -> 0.07115269838 | S70: =Q70-T20 -> 0.01245557137
B71: =B70+1 -> 2007 | E71: 0.0783 | F71: 6.4 | G71: 0.007604 | N71: #NA | O71: #NA | P71: #NA | Q71: #NA | R71: #NA | S71: #NA
B72: =B71+1 -> 2008 | E72: 0.0968 | F72: 6.57 | G72: 0.039053 | N72: 0.1096 | O72: 9.92 | P72: 0.0513 | Q72: =N72+(P72-G72)*(10-O72)/(O72-F72) -> 0.1098924657 | R72: =(1+Q72/2)^2-1 -> 0.1129115542 | S72: =Q72-T28 -> 0.05771045784
B73: 2009 | E73: 0.0887 | F73: 6.62 | G73: 0.027754 | N73: 0.0895 | O73: 9.11 | P73: 0.02751 | Q73: =N73+(P73-G73)*(10-O73)/(O73-F73) -> 0.08941278715 | R73: 0.09141144878 | S73: =Q73-T32 -> 0.03280084715
B74: 2010 | E74: 0.0741 | F74: 6.88 | G74: =0.017672 -> 0.017672 | N74: 0.0773 | O74: 9.05 | P74: 0.020196 | Q74: 0.07840497696 | R74: 0.07994181206 | S74: =Q74-T36 -> 0.02552415662
B75: 2011 | E75: 0.0775 | F75: 7.07 | G75: 0.027762 | N75: 0.0819 | O75: 9.07 | P75: 0.03023 | Q75: 0.08304762 | R75: 0.0847718468 | S75: =Q75-T40 -> 0.03711456471
B76: 2012 | E76: 0.058 | F76: 7.03 | G76: 0.023003 | N76: 0.0642 | O76: 9.24 | P76: 0.026824 | Q76: 0.06551400905 | R76: 0.0665870304 | S76: =Q76-T44 -> 0.0351355426
B77: 2013 | E77: 0.0638 | F77: 6.96 | G77: 0.022928 | N77: 0.0725 | O77: 8.6 | P77: 0.028218 | Q77: 0.07701585366 | R77: 0.07849871409 | S77: =Q77-T48 -> 0.03685957371
B78: 2014 | E78: 0.052 | F78: 6.74 | G78: 0.017741 | N78: 0.0551 | O78: 8.68 | P78: 0.018271 | Q78: 0.05546061856 | R78: 0.05622958861 | S78: =Q78-T52 -> 0.02199061374
B79: 2015 | E79: 0.0515 | F79: 6.6 | G79: 0.025454 | N79: 0.0539 | O79: 9.11 | P79: 0.025194 | Q79: 0.05380780876 | R79: 0.05453162884 | S79: =Q79-T56 -> 0.02719290157
B80: =B79+1 -> 2016 | E80: 0.0419 | F80: 6.9 | G80: 0.018974 | N80: 0.0458 | O80: 9.11 | P80: 0.021258 | Q80: 0.0467198009 | R80: 0.04726548585 | S80: =Q80-T60 -> 0.02332301963
B82: Average | R82: =AVERAGE(R72:R80) -> 0.0746832344 | S82: =AVERAGE(S72:S80) -> 0.03307240862
B84: Return on debt: trailing average without transition | R84: =R82 -> 0.0746832344

Sheet Sheet1
